[Event "European Online Club-ch-E 2021"]
[Site "Online"]
[Date "2021.03.27"]
[Round "5.2"]
[White "Barbini, Denis"]
[Black "Roiz, Michael"]
[Result "0-1"]
[ECO "A08"]
[WhiteElo "2035"]
[BlackElo "2579"]
[Annotator "ChessBase"]
[PlyCount "78"]
[EventDate "2021.03.27"]
[EventType "team-tourn"]
[EventCountry "NET"]
[SourceTitle "playchess.com"]
[Source "ChessBase"]
[SourceQuality "1"]
[TimeControl "900+5"]

1. Nf3 {[%emt 0:00:00]} Nf6 {[%emt 0:00:13]} 2. g3 {[%emt 0:00:03]} c5 {[%emt 0:00:02]} 3. Bg2 {[%emt 0:00:02]} Nc6 {[%emt 0:00:02]} 4. O-O {[%emt 0:00:03]} e5 {[%emt 0:00:01]} 5. d3 {[%emt 0:00:03]} d5 {[%emt 0:00:02]} 6. e4 {[%emt 0:00:05]} Be7 {[%emt 0:00:05]} 7. Nc3 {[%emt 0:00:36]} d4 {[%emt 0:00:02]} 8. Ne2 {[%emt 0:00:06]} Nd7 {[%emt 0:00:03]} 9. Ne1 {[%emt 0:01:05]} h5 {[%emt 0:00:03]} 10. f4 {[%emt 0:00:06]} h4 {[%emt 0:00:02]} 11. Nf3 {[%emt 0:00:16]} hxg3 {[%emt 0:00:03]} 12. hxg3 {[%emt 0:00:03]} Nf6 {[%emt 0:01:18]} 13. fxe5 {[%emt 0:00:51]} Ng4 {[%emt 0:00:03]} 14. c3 {[%emt 0:00:22]} Ngxe5 {[%emt 0:01:33]} 15. Nxe5 {[%emt 0:00:58]} Nxe5 {[%emt 0:00:02]} 16. cxd4 {[%emt 0:00:01]} cxd4 {[%emt 0:00:02]} 17. Bf4 {[%emt 0:00:48]} Nc6 {[%emt 0:03:01]} 18. Bd2 {[%emt 0:02:24]} Ne5 {[%emt 0:02:08]} 19. Bf4 {[%emt 0:00:04]} Bf6 {[%emt 0:01:00]} 20. Bxe5 {[%emt 0:01:53]} Bxe5 {[%emt 0:00:02]} 21. Nf4 {[%emt 0:00:02]} Qg5 {[%emt 0:01:49]} 22. Qf3 {[%emt 0:00:22]} Bg4 {[%emt 0:00:14]} 23. Qf2 {[%emt 0:00:02]} O-O-O {[%emt 0:00:51]} 24. Rfc1+ {[%emt 0:00:11]} Kb8 {[%emt 0:00:02]} 25. Rc5 {[%emt 0:01:02]} f6 {[%emt 0:00:13]} 26. Rac1 {[%emt 0:00:36]} Qh6 {[%emt 0:00:01]} 27. Kf1 {[%emt 0:01:29]} Qh2 {[%emt 0:01:11]} 28. Ke1 {[%emt 0:03:26]} Bd6 {[%emt 0:00:47]} 29. R5c4 {[%emt 0:00:13]} g5 {[%emt 0:00:09]} 30. Ne2 {[%emt 0:00:03]} Bxe2 {[%emt 0:00:39]} 31. Kxe2 {[%emt 0:00:03]} Bxg3 {[%emt 0:00:01]} 32. Qf3 {[%emt 0:00:01]} g4 {[%emt 0:00:08]} 33. Qf1 {[%emt 0:00:16]} Be5 {[%emt 0:00:22]} 34. Kd1 {[%emt 0:00:04]} Qg3 {[%emt 0:00:05]} 35. Kc2 {[%emt 0:00:03]} Rh2 {[%emt 0:00:06]} 36. Kb1 {[%emt 0:00:05]} Qxg2 {[%emt 0:00:04]} 37. Rc8+ {[%emt 0:00:04]} Rxc8 {[%emt 0:00:02]} 38. Rxc8+ {[%emt 0:00:02]} Kxc8 {[%emt 0:00:02]} 39. Qf5+ {[%emt 0:00:01]} Kc7 {[%emt 0:00:02]} 0-1

[Event "European Online Club-ch-E 2021"]
[Site "Online"]
[Date "2021.03.27"]
[Round "5.3"]
[White "Postny, Evgeny"]
[Black "Lejeune, Gael"]
[Result "1-0"]
[ECO "E07"]
[WhiteElo "2605"]
[BlackElo "2070"]
[Annotator "ChessBase"]
[PlyCount "187"]
[EventDate "2021.03.27"]
[EventType "team-tourn"]
[EventCountry "NET"]
[SourceTitle "playchess.com"]
[Source "ChessBase"]
[SourceQuality "1"]
[TimeControl "900+5"]

1. d4 {[%emt 0:00:00]} d5 {[%emt 0:00:07]} 2. c4 {[%emt 0:00:03]} e6 {[%emt 0:00:02]} 3. Nf3 {[%emt 0:00:02]} Nf6 {[%emt 0:00:05]} 4. g3 {[%emt 0:00:01]} Be7 {[%emt 0:00:14]} 5. Bg2 {[%emt 0:00:02]} O-O {[%emt 0:00:02]} 6. O-O {[%emt 0:00:01]} c6 {[%emt 0:00:03]} 7. b3 {[%emt 0:00:10]} Re8 {[%emt 0:01:20]} 8. Nc3 {[%emt 0:00:05]} Nbd7 {[%emt 0:00:02]} 9. Bb2 {[%emt 0:00:19]} Nf8 {[%emt 0:01:16]} 10. Qc2 {[%emt 0:00:16]} Bd7 {[%emt 0:00:19]} 11. e4 {[%emt 0:00:04]} dxe4 {[%emt 0:00:05]} 12. Nxe4 {[%emt 0:00:01]} Nxe4 {[%emt 0:00:01]} 13. Qxe4 {[%emt 0:00:03]} Bf6 {[%emt 0:00:07]} 14. Ne5 {[%emt 0:00:16]} Qa5 {[%emt 0:00:18]} 15. Qe3 {[%emt 0:01:09]} Rad8 {[%emt 0:00:21]} 16. Bc3 {[%emt 0:00:25]} Qc7 {[%emt 0:00:05]} 17. Rad1 {[%emt 0:00:08]} Bc8 {[%emt 0:00:17]} 18. h4 {[%emt 0:00:20]} Bxe5 {[%emt 0:00:48]} 19. dxe5 {[%emt 0:00:04]} c5 {[%emt 0:00:03]} 20. h5 {[%emt 0:00:33]} h6 {[%emt 0:00:31]} 21. Kh2 {[%emt 0:03:35]} b6 {[%emt 0:00:23]} 22. Qe4 {[%emt 0:00:07]} Rxd1 {[%emt 0:01:39]} 23. Rxd1 {[%emt 0:00:04]} Rd8 {[%emt 0:00:03]} 24. Rd2 {[%emt 0:00:38]} Rxd2 {[%emt 0:01:48]} 25. Bxd2 {[%emt 0:00:04]} Nd7 {[%emt 0:00:01]} 26. Bf4 {[%emt 0:00:17]} a6 {[%emt 0:01:24]} 27. g4 {[%emt 0:00:32]} b5 {[%emt 0:00:13]} 28. Bg3 {[%emt 0:00:08]} bxc4 {[%emt 0:00:14]} 29. bxc4 {[%emt 0:00:13]} Nf8 {[%emt 0:01:10]} 30. Qa8 {[%emt 0:01:29]} a5 {[%emt 0:00:52]} 31. f4 {[%emt 0:00:27]} Bd7 {[%emt 0:00:10]} 32. Bh4 {[%emt 0:01:31]} Ba4 {[%emt 0:00:09]} 33. Be1 {[%emt 0:00:17]} Bd1 {[%emt 0:00:09]} 34. Kh3 {[%emt 0:00:41]} Qd7 {[%emt 0:00:40]} 35. Qe4 {[%emt 0:00:39]} a4 {[%emt 0:00:11]} 36. a3 {[%emt 0:00:42]} g6 {[%emt 0:00:44]} 37. Qe3 {[%emt 0:00:26]} gxh5 {[%emt 0:00:16]} 38. gxh5 {[%emt 0:00:07]} Bxh5 {[%emt 0:00:05]} 39. Qxc5 {[%emt 0:00:08]} Qd3+ {[%emt 0:00:19]} 40. Bg3 {[%emt 0:00:08]} Ng6 {[%emt 0:00:17]} 41. Kh2 {[%emt 0:00:04]} Be2 {[%emt 0:00:35]} 42. Qc6 {[%emt 0:01:30]} Qxc4 {[%emt 0:00:21]} 43. Qxc4 {[%emt 0:00:02]} Bxc4 {[%emt 0:00:01]} 44. Kg1 {[%emt 0:00:04]} h5 {[%emt 0:00:02]} 45. Kf2 {[%emt 0:00:08]} h4 {[%emt 0:00:03]} 46. Bh2 {[%emt 0:00:01]} Ne7 {[%emt 0:00:07]} 47. Ke3 {[%emt 0:00:11]} Nf5+ {[%emt 0:00:04]} 48. Kd2 {[%emt 0:00:08]} Kg7 {[%emt 0:00:21]} 49. Bf3 {[%emt 0:00:08]} h3 {[%emt 0:00:16]} 50. Bd1 {[%emt 0:00:20]} Bb5 {[%emt 0:00:05]} 51. Bg4 {[%emt 0:00:03]} Bf1 {[%emt 0:00:13]} 52. Ke1 {[%emt 0:00:02]} Bg2 {[%emt 0:00:05]} 53. Bd1 {[%emt 0:00:02]} Bc6 {[%emt 0:00:04]} 54. Kf2 {[%emt 0:00:05]} Nd4 {[%emt 0:00:04]} 55. Kg3 {[%emt 0:00:08]} Kg6 {[%emt 0:00:10]} 56. Bg1 {[%emt 0:00:10]} Nb3 {[%emt 0:00:10]} 57. Bc2+ {[%emt 0:00:05]} Kg7 {[%emt 0:00:02]} 58. Kxh3 {[%emt 0:00:03]} Nc1 {[%emt 0:00:03]} 59. Be3 {[%emt 0:00:09]} Ne2 {[%emt 0:00:01]} 60. Bd3 {[%emt 0:00:07]} Nc3 {[%emt 0:00:03]} 61. Kg3 {[%emt 0:00:04]} Nb5 {[%emt 0:00:02]} 62. Bc5 {[%emt 0:00:04]} Nc3 {[%emt 0:00:02]} 63. Bb4 {[%emt 0:00:07]} Nd5 {[%emt 0:00:03]} 64. Bd2 {[%emt 0:00:06]} Kf8 {[%emt 0:00:04]} 65. Kf2 {[%emt 0:00:07]} Ke7 {[%emt 0:00:03]} 66. Bc4 {[%emt 0:00:04]} f6 {[%emt 0:00:03]} 67. Ke2 {[%emt 0:00:04]} fxe5 {[%emt 0:00:03]} 68. fxe5 {[%emt 0:00:02]} Kd7 {[%emt 0:00:02]} 69. Kd3 {[%emt 0:00:02]} Nc7 {[%emt 0:00:07]} 70. Ba2 {[%emt 0:00:14]} Bd5 {[%emt 0:00:06]} 71. Bb1 {[%emt 0:00:02]} Nb5 {[%emt 0:00:04]} 72. Bb4 {[%emt 0:00:03]} Kc6 {[%emt 0:00:03]} 73. Ke3 {[%emt 0:00:02]} Bb3 {[%emt 0:00:12]} 74. Be4+ {[%emt 0:00:04]} Bd5 {[%emt 0:00:01]} 75. Bg6 {[%emt 0:00:03]} Bb3 {[%emt 0:00:03]} 76. Be8+ {[%emt 0:00:03]} Kb6 {[%emt 0:00:02]} 77. Kf4 {[%emt 0:00:11]} Bd5 {[%emt 0:00:11]} 78. Kg5 {[%emt 0:00:04]} Nc7 {[%emt 0:00:04]} 79. Bxa4 {[%emt 0:00:05]} Bc6 {[%emt 0:00:08]} 80. Bd1 {[%emt 0:00:06]} Nd5 {[%emt 0:00:03]} 81. Bd2 {[%emt 0:00:05]} Kc5 {[%emt 0:00:04]} 82. Bc1 {[%emt 0:00:11]} Kd4 {[%emt 0:00:03]} 83. Bb2+ {[%emt 0:00:02]} Kc4 {[%emt 0:00:07]} 84. Kg6 {[%emt 0:00:06]} Be8+ {[%emt 0:00:02]} 85. Kg7 {[%emt 0:00:03]} Kd3 {[%emt 0:00:06]} 86. Kf8 {[%emt 0:00:03]} Bc6 {[%emt 0:00:02]} 87. Kf7 {[%emt 0:00:05]} Nf4 {[%emt 0:00:06]} 88. Bc1 {[%emt 0:00:07]} Nd5 {[%emt 0:00:12]} 89. Kxe6 {[%emt 0:00:04]} Nc3 {[%emt 0:00:01]} 90. Bg4 {[%emt 0:00:10]} Ba4 {[%emt 0:00:08]} 91. Bh6 {[%emt 0:00:06]} Kc2 {[%emt 0:00:05]} 92. Bf8 {[%emt 0:00:03]} Kb3 {[%emt 0:00:04]} 93. Kf7 {[%emt 0:00:04]} Nb5 {[%emt 0:00:10]} 94. Bd1+ {[%emt 0:00:02]} 1-0

[Event "European Online Club-ch-E 2021"]
[Site "Online"]
[Date "2021.03.27"]
[Round "5.4"]
[White "Marchadour, Emilie"]
[Black "Huzman, Alexander"]
[Result "0-1"]
[ECO "C16"]
[WhiteElo "2006"]
[BlackElo "2561"]
[Annotator "ChessBase"]
[PlyCount "81"]
[EventDate "2021.03.27"]
[EventType "team-tourn"]
[EventCountry "NET"]
[SourceTitle "playchess.com"]
[Source "ChessBase"]
[SourceQuality "1"]
[TimeControl "900+5"]

1. e4 {[%emt 0:00:00]} e6 {[%emt 0:00:13]} 2. d4 {[%emt 0:00:05]} d5 {[%emt 0:00:03]} 3. Nc3 {[%emt 0:00:09]} Bb4 {[%emt 0:00:19]} 4. e5 {[%emt 0:00:07]} Qd7 {[%emt 0:00:02]} 5. Qg4 {[%emt 0:00:26]} Bf8 {[%emt 0:00:04]} 6. f4 {[%emt 0:00:32]} b6 {[%emt 0:00:05]} 7. Bd2 {[%emt 0:00:26]} Ba6 {[%emt 0:00:06]} 8. O-O-O {[%emt 0:00:17]} Bxf1 {[%emt 0:00:22]} 9. Rxf1 {[%emt 0:00:02]} Nc6 {[%emt 0:00:02]} 10. Nge2 {[%emt 0:00:22]} Nge7 {[%emt 0:00:05]} 11. Qf3 {[%emt 0:00:58]} Nf5 {[%emt 0:00:20]} 12. Qf2 {[%emt 0:00:08]} h5 {[%emt 0:00:05]} 13. g3 {[%emt 0:00:11]} O-O-O {[%emt 0:00:50]} 14. h3 {[%emt 0:00:14]} h4 {[%emt 0:00:32]} 15. g4 {[%emt 0:00:18]} Ng3 {[%emt 0:00:02]} 16. Nxg3 {[%emt 0:00:12]} hxg3 {[%emt 0:00:03]} 17. Qxg3 {[%emt 0:00:42]} Nxd4 {[%emt 0:00:03]} 18. Qd3 {[%emt 0:00:20]} c5 {[%emt 0:00:10]} 19. Be3 {[%emt 0:01:55]} Nc6 {[%emt 0:00:04]} 20. Qa6+ {[%emt 0:01:19]} Qb7 {[%emt 0:01:20]} 21. Qxb7+ {[%emt 0:00:19]} Kxb7 {[%emt 0:00:01]} 22. Bd2 {[%emt 0:00:02]} Be7 {[%emt 0:00:03]} 23. Be1 {[%emt 0:00:23]} a6 {[%emt 0:01:18]} 24. Bg3 {[%emt 0:00:23]} Bh4 {[%emt 0:00:07]} 25. Bh2 {[%emt 0:01:38]} Rh7 {[%emt 0:00:10]} 26. Ne2 {[%emt 0:01:45]} Rdh8 {[%emt 0:00:15]} 27. Rf3 {[%emt 0:00:25]} Bd8 {[%emt 0:00:25]} 28. Bg1 {[%emt 0:00:03]} g5 {[%emt 0:00:13]} 29. Be3 {[%emt 0:00:46]} Bc7 {[%emt 0:00:34]} 30. Bd2 {[%emt 0:01:43]} gxf4 {[%emt 0:00:04]} 31. Nxf4 {[%emt 0:00:13]} Nxe5 {[%emt 0:00:05]} 32. Rg3 {[%emt 0:00:02]} Nc4 {[%emt 0:00:08]} 33. Rf3 {[%emt 0:00:16]} Ne5 {[%emt 0:00:58]} 34. Rg3 {[%emt 0:00:11]} Kc6 {[%emt 0:00:32]} 35. Nh5 {[%emt 0:00:42]} Nxg4 {[%emt 0:00:14]} 36. Rxg4 {[%emt 0:00:03]} Rxh5 {[%emt 0:00:03]} 37. h4 {[%emt 0:00:12]} Bd8 {[%emt 0:00:20]} 38. Be1 {[%emt 0:00:05]} R8h6 {[%emt 0:00:13]} 39. Rf4 {[%emt 0:00:07]} f5 {[%emt 0:00:07]} 40. Ra4 {[%emt 0:00:07]} a5 {[%emt 0:00:05]} 41. a3 {[%emt 0:00:04]} 0-1

[Event "European Online Club-ch-E 2021"]
[Site "Online"]
[Date "2021.03.27"]
[Round "5.5"]
[White "Chatalbashev, Boris"]
[Black "Oparin, Grigoriy"]
[Result "0-1"]
[ECO "D31"]
[WhiteElo "2530"]
[BlackElo "2652"]
[Annotator "ChessBase"]
[PlyCount "80"]
[EventDate "2021.03.27"]
[EventType "team-tourn"]
[EventCountry "NET"]
[SourceTitle "playchess.com"]
[Source "ChessBase"]
[SourceQuality "1"]
[TimeControl "900+5"]

1. d4 {[%emt 0:00:00]} d5 {[%emt 0:00:02]} 2. c4 {[%emt 0:00:03]} e6 {[%emt 0:00:01]} 3. Nc3 {[%emt 0:00:03]} Be7 {[%emt 0:00:01]} 4. cxd5 {[%emt 0:00:03]} exd5 {[%emt 0:00:00]} 5. Bf4 {[%emt 0:00:03]} c6 {[%emt 0:00:02]} 6. e3 {[%emt 0:00:07]} Bf5 {[%emt 0:00:02]} 7. Nge2 {[%emt 0:00:06]} Nd7 {[%emt 0:00:05]} 8. Ng3 {[%emt 0:00:02]} Be6 {[%emt 0:00:23]} 9. Bd3 {[%emt 0:01:02]} g5 {[%emt 0:01:57]} 10. Be5 {[%emt 0:00:07]} f6 {[%emt 0:00:02]} 11. f4 {[%emt 0:04:38]} fxe5 {[%emt 0:00:28]} 12. dxe5 {[%emt 0:00:20]} Qb6 {[%emt 0:00:24]} 13. Qe2 {[%emt 0:00:23]} O-O-O {[%emt 0:00:36]} 14. O-O-O {[%emt 0:00:46]} d4 {[%emt 0:01:49]} 15. exd4 {[%emt 0:00:04]} gxf4 {[%emt 0:00:03]} 16. Nh5 {[%emt 0:00:28]} Nh6 {[%emt 0:02:04]} 17. h3 {[%emt 0:00:35]} Qxd4 {[%emt 0:00:41]} 18. Ng7 {[%emt 0:00:50]} f3 {[%emt 0:00:37]} 19. gxf3 {[%emt 0:01:09]} Nc5 {[%emt 0:00:42]} 20. Nxe6 {[%emt 0:00:23]} Nxe6 {[%emt 0:00:00]} 21. Bc4 {[%emt 0:00:39]} Qf4+ {[%emt 0:00:06]} 22. Kb1 {[%emt 0:00:03]} Nd4 {[%emt 0:00:05]} 23. Qf2 {[%emt 0:00:17]} Qxf3 {[%emt 0:00:30]} 24. Qg1 {[%emt 0:00:34]} Qf5+ {[%emt 0:00:11]} 25. Bd3 {[%emt 0:00:10]} Qxe5 {[%emt 0:00:02]} 26. Re1 {[%emt 0:00:04]} Qg5 {[%emt 0:00:07]} 27. Qh2 {[%emt 0:00:32]} Bd6 {[%emt 0:00:03]} 28. Ne4 {[%emt 0:00:05]} Bxh2 {[%emt 0:00:12]} 29. Nxg5 {[%emt 0:00:02]} Bf4 {[%emt 0:00:03]} 30. h4 {[%emt 0:00:07]} Ng4 {[%emt 0:01:00]} 31. Nf7 {[%emt 0:00:40]} Nf2 {[%emt 0:00:02]} 32. Nxd8 {[%emt 0:00:07]} Rxd8 {[%emt 0:00:11]} 33. Bxh7 {[%emt 0:00:05]} Nxh1 {[%emt 0:00:05]} 34. Rxh1 {[%emt 0:00:01]} Bh6 {[%emt 0:00:10]} 35. h5 {[%emt 0:00:01]} Rf8 {[%emt 0:00:05]} 36. Rg1 {[%emt 0:00:08]} Rf6 {[%emt 0:00:02]} 37. Be4 {[%emt 0:00:14]} Kc7 {[%emt 0:00:04]} 38. b4 {[%emt 0:00:20]} b5 {[%emt 0:00:19]} 39. Kb2 {[%emt 0:00:10]} Rf2+ {[%emt 0:00:05]} 40. Kb1 {[%emt 0:00:06]} Ne2 {[%emt 0:00:04]} 0-1

[Event "European Online Club-ch-E 2021"]
[Site "Online"]
[Date "2021.03.27"]
[Round "5.6"]
[White "Moussard, Jules"]
[Black "Moreno Trujillo, Alejandro"]
[Result "1-0"]
[ECO "C07"]
[WhiteElo "2635"]
[BlackElo "2483"]
[Annotator "ChessBase"]
[PlyCount "153"]
[EventDate "2021.03.27"]
[EventType "team-tourn"]
[EventCountry "NET"]
[SourceTitle "playchess.com"]
[Source "ChessBase"]
[SourceQuality "1"]
[TimeControl "900+5"]

1. e4 {[%emt 0:00:00]} e6 {[%emt 0:00:06]} 2. d4 {[%emt 0:00:03]} d5 {[%emt 0:00:03]} 3. Nd2 {[%emt 0:00:03]} c5 {[%emt 0:00:06]} 4. Ngf3 {[%emt 0:00:18]} cxd4 {[%emt 0:00:05]} 5. exd5 {[%emt 0:00:07]} Qxd5 {[%emt 0:00:04]} 6. Bc4 {[%emt 0:00:02]} Qd7 {[%emt 0:00:03]} 7. O-O {[%emt 0:00:16]} Nc6 {[%emt 0:00:05]} 8. Nb3 {[%emt 0:00:05]} Nf6 {[%emt 0:00:04]} 9. Bg5 {[%emt 0:00:35]} a6 {[%emt 0:00:52]} 10. a4 {[%emt 0:00:32]} Bd6 {[%emt 0:02:40]} 11. Nbxd4 {[%emt 0:01:16]} Nxd4 {[%emt 0:00:05]} 12. Qxd4 {[%emt 0:00:07]} Be7 {[%emt 0:00:23]} 13. Qb6 {[%emt 0:01:24]} Qc6 {[%emt 0:00:14]} 14. Qxc6+ {[%emt 0:00:08]} bxc6 {[%emt 0:00:03]} 15. Ne5 {[%emt 0:00:18]} Nd7 {[%emt 0:00:42]} 16. Nxd7 {[%emt 0:00:17]} Bxd7 {[%emt 0:00:05]} 17. Be3 {[%emt 0:00:30]} c5 {[%emt 0:00:10]} 18. b3 {[%emt 0:00:02]} Bc6 {[%emt 0:00:11]} 19. Rad1 {[%emt 0:00:03]} O-O {[%emt 0:00:24]} 20. Rd2 {[%emt 0:00:02]} Rfc8 {[%emt 0:00:22]} 21. Rfd1 {[%emt 0:00:09]} Kf8 {[%emt 0:00:02]} 22. f3 {[%emt 0:00:24]} Ke8 {[%emt 0:00:26]} 23. Kf2 {[%emt 0:00:02]} Rcb8 {[%emt 0:00:21]} 24. Rd3 {[%emt 0:00:22]} Rb7 {[%emt 0:00:23]} 25. Bf4 {[%emt 0:00:31]} Rb4 {[%emt 0:01:19]} 26. Bd2 {[%emt 0:00:04]} Rb7 {[%emt 0:00:04]} 27. Bc3 {[%emt 0:00:05]} Bf6 {[%emt 0:00:24]} 28. Bxf6 {[%emt 0:00:57]} gxf6 {[%emt 0:00:04]} 29. Rd6 {[%emt 0:00:01]} Rc7 {[%emt 0:00:04]} 30. Re1 {[%emt 0:02:36]} Ke7 {[%emt 0:00:15]} 31. Rxc6 {[%emt 0:00:03]} Rxc6 {[%emt 0:00:03]} 32. Bd5 {[%emt 0:00:01]} Rac8 {[%emt 0:00:03]} 33. Bxc6 {[%emt 0:00:01]} Rxc6 {[%emt 0:00:01]} 34. Re4 {[%emt 0:00:01]} Rd6 {[%emt 0:01:23]} 35. Ke2 {[%emt 0:00:05]} Rd5 {[%emt 0:00:04]} 36. Rg4 {[%emt 0:00:04]} Kf8 {[%emt 0:01:04]} 37. c3 {[%emt 0:01:14]} h5 {[%emt 0:00:17]} 38. Rc4 {[%emt 0:00:05]} a5 {[%emt 0:00:07]} 39. b4 {[%emt 0:00:09]} cxb4 {[%emt 0:00:07]} 40. cxb4 {[%emt 0:00:01]} axb4 {[%emt 0:00:15]} 41. Rxb4 {[%emt 0:00:01]} Kg7 {[%emt 0:00:09]} 42. Rb2 {[%emt 0:00:13]} Ra5 {[%emt 0:00:19]} 43. Ra2 {[%emt 0:00:02]} Kf8 {[%emt 0:00:01]} 44. Kd3 {[%emt 0:00:01]} Ke7 {[%emt 0:00:02]} 45. Kc4 {[%emt 0:00:02]} Kd6 {[%emt 0:00:03]} 46. Kb4 {[%emt 0:00:16]} Rg5 {[%emt 0:00:11]} 47. Rc2 {[%emt 0:00:17]} Rg8 {[%emt 0:00:11]} 48. a5 {[%emt 0:00:03]} Rb8+ {[%emt 0:00:03]} 49. Ka4 {[%emt 0:00:01]} Ra8 {[%emt 0:00:22]} 50. Kb5 {[%emt 0:02:00]} Rb8+ {[%emt 0:00:03]} 51. Ka6 {[%emt 0:00:04]} Rb3 {[%emt 0:00:21]} 52. Ka7 {[%emt 0:00:07]} h4 {[%emt 0:00:21]} 53. h3 {[%emt 0:00:09]} e5 {[%emt 0:00:30]} 54. a6 {[%emt 0:00:44]} f5 {[%emt 0:00:15]} 55. Rc4 {[%emt 0:00:09]} Rb2 {[%emt 0:00:34]} 56. Rxh4 {[%emt 0:00:22]} Rxg2 {[%emt 0:00:02]} 57. Rb4 {[%emt 0:00:18]} Kc7 {[%emt 0:00:19]} 58. Rb7+ {[%emt 0:00:06]} Kc6 {[%emt 0:00:14]} 59. Rxf7 {[%emt 0:00:01]} f4 {[%emt 0:00:04]} 60. h4 {[%emt 0:01:05]} Rg3 {[%emt 0:01:08]} 61. h5 {[%emt 0:00:08]} Rh3 {[%emt 0:00:04]} 62. Rf6+ {[%emt 0:00:09]} Kc7 {[%emt 0:00:17]} 63. h6 {[%emt 0:00:04]} e4 {[%emt 0:00:28]} 64. fxe4 {[%emt 0:00:02]} f3 {[%emt 0:00:02]} 65. Rf7+ {[%emt 0:00:10]} Kc6 {[%emt 0:00:03]} 66. Rf6+ {[%emt 0:00:12]} Kc7 {[%emt 0:00:03]} 67. e5 {[%emt 0:00:02]} f2 {[%emt 0:00:07]} 68. Rxf2 {[%emt 0:00:07]} Rxh6 {[%emt 0:00:02]} 69. Rc2+ {[%emt 0:00:01]} Kd7 {[%emt 0:00:05]} 70. Kb7 {[%emt 0:00:07]} Rh3 {[%emt 0:00:02]} 71. Rd2+ {[%emt 0:00:02]} Ke6 {[%emt 0:00:03]} 72. Rd6+ {[%emt 0:00:23]} Kxe5 {[%emt 0:00:02]} 73. Rc6 {[%emt 0:00:01]} Rh7+ {[%emt 0:00:15]} 74. Rc7 {[%emt 0:00:03]} Rh1 {[%emt 0:00:03]} 75. a7 {[%emt 0:00:01]} Rb1+ {[%emt 0:00:02]} 76. Kc8 {[%emt 0:00:01]} Ra1 {[%emt 0:00:03]} 77. Kb8 {[%emt 0:00:01]} 1-0